fUSD/lending_fUSD_20241104
["ID","MTS","AMOUNT","RATE_DAILY","PERIOD"]
[341232757,1730706665972,-150.5,0.00038346,120]
[341232758,1730706665982,-500.0,0.00038347,2]
[341232759,1730706665991,-150.5,0.0003835,30]
[341232760,1730706666002,-206.0,0.0003835,30]
[341232761,1730706666011,-1000.0,0.00038356,2]
[341232762,1730706666127,-1000.0,0.00038356,2]
[341232763,1730706666139,-169.346191,0.00038356,2]
[341232764,1730706666149,-500.0,0.00038356,2]
[341232765,1730706666158,-500.0,0.00038356,2]
[341232766,1730706666168,-500.0,0.00038356,2]
[341232767,1730706666177,-500.0,0.00038356,2]
[341232768,1730706666186,-150.0,0.00038356,2]
[341232769,1730706666197,-500.0,0.00038356,2]
[341232770,1730706666207,-500.0,0.00038356,2]
[341232771,1730706666216,-922.57,0.00038356,2]
[341232772,1730706666225,-500.0,0.00038356,2]
[341232773,1730706666235,-500.0,0.00038356,2]
[341232774,1730706666245,-500.0,0.00038356,2]
[341232775,1730706666258,-150.0,0.00038356,30]
[341232776,1730706666268,-355.56043825,0.00038356,30]
[341232777,1730706666278,-503.57,0.00038356,2]
[341232778,1730706666287,-409.12267558,0.00038356,2]
[341232779,1730706666296,-500.0,0.00038356,2]
[341232780,1730706666305,-500.0,0.00038356,2]
[341232781,1730706666314,-1260.4,0.00038356,2]
[341232782,1730706666323,-250.0,0.00038356,2]
[341232783,1730706666333,-1008.77,0.00038356,2]
[341232784,1730706666342,-552.59,0.00038356,2]
[341232785,1730706666352,-500.0,0.00038356,2]
[341232786,1730706666361,-378.37657735,0.00038356,2]
[341232787,1730706666370,-764.99,0.00038356,2]
[341232788,1730706666382,-680.74,0.00038356,2]
[341232789,1730706666391,-500.0,0.00038356,2]
[341232790,1730706666400,-256.428684,0.00038356,2]
[341232791,1730706666409,-500.0,0.00038356,2]
[341232792,1730706666419,-500.0,0.00038356,2]
[341232793,1730706666428,-500.0,0.00038356,2]
[341232794,1730706666438,-500.0,0.00038356,2]
[341232795,1730706666447,-500.0,0.00038356,2]
[341232796,1730706666457,-500.0,0.00038356,2]
[341232797,1730706666468,-500.0,0.00038356,2]
[341232798,1730706666478,-500.0,0.00038356,2]
[341232799,1730706666487,-500.0,0.00038356,2]
[341232800,1730706666497,-500.0,0.00038356,2]
[341232801,1730706666511,-500.0,0.00038356,2]
[341232802,1730706666520,-500.0,0.00038356,2]
[341232803,1730706666530,-500.0,0.00038356,2]
[341232804,1730706666540,-500.0,0.00038356,2]
[341232805,1730706666549,-465.54180372,0.00038356,2]
[341232806,1730706666559,-174.34212735,0.00038356,2]
[341232807,1730706666568,-500.0,0.00038356,2]
[341232808,1730706666578,-500.0,0.00038356,2]
[341232809,1730706666587,-882.73,0.00038356,2]
[341232810,1730706666597,-500.0,0.00038356,2]
[341232811,1730706666606,-500.0,0.00038356,2]
[341232812,1730706666616,-1038.01,0.00038356,2]
[341232813,1730706666625,-636.33,0.00038356,2]
[341232814,1730706666635,-2119.8,0.00038356,2]
[341232815,1730706666645,-500.0,0.00038356,2]
[341232816,1730706666655,-855.96,0.00038356,2]
[341232817,1730706666664,-293.25399704,0.00038356,2]
[341232818,1730706666673,-1376.22,0.00038356,2]
[341232819,1730706666683,-1148.2,0.00038356,2]
[341232820,1730706666693,-500.0,0.00038356,2]
[341232821,1730706666702,-500.0,0.00038356,2]
[341232822,1730706666712,-500.0,0.00038356,2]
[341232823,1730706666721,-500.0,0.00038356,2]
[341232824,1730706666731,-502.79,0.00038356,2]
[341232825,1730706666740,-550.01,0.00038356,2]
[341232826,1730706666751,-500.0,0.00038356,2]
[341232827,1730706666760,-500.0,0.00038356,2]
[341232828,1730706666770,-500.0,0.00038356,2]
[341232829,1730706666780,-1083.55,0.00038356,2]
[341232830,1730706666789,-500.0,0.00038356,2]
[341232831,1730706666798,-500.0,0.00038356,2]
[341232832,1730706666808,-500.0,0.00038356,2]
[341232833,1730706666818,-620.66,0.00038356,2]
[341232834,1730706666828,-500.0,0.00038356,2]
[341232835,1730706666838,-658.4,0.00038356,2]
[341232836,1730706666847,-625.32,0.00038356,2]
[341232837,1730706666856,-500.0,0.00038356,2]
[341232838,1730706666866,-500.0,0.00038356,2]
[341232839,1730706666875,-557.48,0.00038356,2]
[341232840,1730706666885,-5483.23,0.00038356,2]
[341232841,1730706666895,-500.0,0.00038356,2]
[341232842,1730706666904,-637.29,0.00038356,2]
[341232843,1730706666914,-500.0,0.00038356,2]
[341232844,1730706666924,-2000.0,0.00038356,15]
[341232845,1730706666933,-54004.96,0.00038356,2]
[341232846,1730706666943,-1450.66743,0.00038374,2]
[341232847,1730706666954,-3343.695047,0.00038374,2]
[341232848,1730706666963,-305.31259371,0.0003839,2]
[341232849,1730706666972,-700.0,0.00038392,14]
[341232850,1730706666982,-700.0,0.00038392,14]
[341232851,1730706666993,-700.0,0.00038392,14]
[341232852,1730706667003,-700.0,0.00038392,14]
[341232853,1730706667012,-700.0,0.00038392,14]
[341232854,1730706667022,-10000.0,0.00038392,30]
[341232855,1730706667031,-428915.90049035,0.000384,120]
[341232856,1730706667040,-480.0,0.00038425,2]
[341232857,1730706667050,-493.0,0.00038496,2]
[341232858,1730706667060,-166.78,0.00038596,2]
[341232859,1730706667069,-179.65928642,0.00038621,2]
[341232860,1730706667078,-1000.0,0.0003863,2]
[341232861,1730706667088,-1000.0,0.0003863,30]
[341232862,1730706667098,-500.0,0.0003863,2]
[341232863,1730706667106,-500.0,0.0003863,2]
[341232864,1730706667116,-500.0,0.0003863,2]
[341232865,1730706667126,-538.15,0.0003863,2]
[341232866,1730706667135,-150.0,0.0003863,2]
[341232867,1730706667145,-500.0,0.0003863,2]
[341232868,1730706667154,-500.0,0.0003863,2]
[341232869,1730706667164,-922.57,0.0003863,2]
[341232870,1730706667174,-555.29406352,0.0003863,2]
[341232871,1730706667184,-500.0,0.0003863,2]
[341232872,1730706667193,-491.70621602,0.0003863,2]
[341232873,1730706667203,-503.57,0.0003863,2]
[341232874,1730706667211,-500.0,0.0003863,2]
[341232875,1730706667221,-500.0,0.0003863,2]
[341232876,1730706667230,-1260.4,0.0003863,2]
[341232877,1730706667239,-250.0,0.0003863,2]
[341232878,1730706667248,-1008.77,0.0003863,2]
[341232879,1730706667260,-552.59,0.0003863,2]
[341232880,1730706667269,-500.0,0.0003863,2]
[341232881,1730706667278,-764.99,0.0003863,2]
[341232882,1730706667287,-680.74,0.0003863,2]
[341232883,1730706667297,-500.0,0.0003863,2]
[341232884,1730706667308,-500.0,0.0003863,2]
[341232885,1730706667318,-500.0,0.0003863,2]
[341232886,1730706667329,-500.0,0.0003863,2]
[341232887,1730706667340,-500.0,0.0003863,2]
[341232888,1730706667351,-500.0,0.0003863,2]
[341232889,1730706667361,-500.0,0.0003863,2]
[341232890,1730706667371,-882.73,0.0003863,2]
[341232891,1730706667381,-500.0,0.0003863,2]
[341232892,1730706667390,-500.0,0.0003863,2]
[341232893,1730706667402,-1038.01,0.0003863,2]
[341232894,1730706667412,-636.33,0.0003863,2]
[341232895,1730706667422,-2119.8,0.0003863,2]
[341232896,1730706667435,-602.85000932,0.0003863,2]
[341232897,1730706667446,-855.96,0.0003863,2]
[341232898,1730706667457,-1376.22,0.0003863,2]
[341232899,1730706667467,-1148.2,0.0003863,2]
[341232900,1730706667477,-500.0,0.0003863,2]
[341232901,1730706667486,-500.0,0.0003863,2]
[341232902,1730706667495,-500.0,0.0003863,2]
[341232903,1730706667505,-500.0,0.0003863,2]
[341232904,1730706667515,-502.79,0.0003863,2]
[341232905,1730706667525,-550.01,0.0003863,2]
[341232906,1730706667534,-500.0,0.0003863,2]
[341232907,1730706667543,-500.0,0.0003863,2]
[341232908,1730706667553,-500.0,0.0003863,2]
[341232909,1730706667562,-1083.55,0.0003863,2]
[341232910,1730706667572,-500.0,0.0003863,2]
[341232911,1730706667582,-500.0,0.0003863,2]
[341232912,1730706667591,-500.0,0.0003863,2]
[341232913,1730706667601,-620.66,0.0003863,2]
[341232914,1730706667613,-500.0,0.0003863,2]
[341232915,1730706667624,-658.4,0.0003863,2]
[341232916,1730706667635,-625.32,0.0003863,2]
[341232917,1730706667647,-500.0,0.0003863,2]
[341232918,1730706667657,-500.0,0.0003863,2]
[341232919,1730706667668,-557.48,0.0003863,2]
[341232920,1730706667678,-5483.23,0.0003863,2]
[341232921,1730706667687,-500.0,0.0003863,2]
[341232922,1730706667696,-637.29,0.0003863,2]
[341232923,1730706667707,-500.0,0.0003863,2]
[341232924,1730706667719,-493.0,0.0003877,2]
[341232925,1730706667728,-152.0,0.00038772,3]
[341232926,1730706667739,-500.0,0.00038774,60]
[341232927,1730706667752,-500.0,0.00038774,60]
[341232928,1730706667762,-500.0,0.00038774,60]
[341232929,1730706667771,-1515.88,0.00038861,2]
[341232930,1730706667780,-1000.0,0.00038904,2]
[341232931,1730706667789,-1000.0,0.00038904,30]
[341232932,1730706667797,-500.0,0.00038904,2]
[341232933,1730706667806,-500.0,0.00038904,2]
[341232934,1730706667816,-175.97817923,0.00038904,2]
[341232935,1730706667826,-150.0,0.00038904,2]
[341232936,1730706667837,-238.09671604,0.00038904,2]
[341232937,1730706667847,-500.0,0.00038904,2]
[341232938,1730706667858,-922.57,0.00038904,2]
[341232939,1730706667869,-500.0,0.00038904,2]
[341232940,1730706667879,-503.57,0.00038904,2]
[341232941,1730706667888,-629.90665056,0.00038904,2]
[341232942,1730706667898,-500.0,0.00038904,2]
[341232943,1730706667908,-1260.4,0.00038904,2]
[341232944,1730706667917,-259.20416518,0.00038904,2]
[341232945,1730706667927,-1008.77,0.00038904,2]
[341232946,1730706667937,-552.59,0.00038904,2]
[341232947,1730706667946,-500.0,0.00038904,2]
[341232948,1730706667956,-764.99,0.00038904,2]
[341232949,1730706667965,-680.74,0.00038904,2]
[341232950,1730706667975,-500.0,0.00038904,2]
[341232951,1730706667984,-500.0,0.00038904,2]
[341232952,1730706667994,-500.0,0.00038904,2]
[341232953,1730706668004,-500.0,0.00038904,2]
[341232954,1730706668014,-500.0,0.00038904,2]
[341232955,1730706668023,-500.0,0.00038904,2]
[341232956,1730706668033,-500.0,0.00038904,2]
[341232957,1730706668043,-882.73,0.00038904,2]
[341232958,1730706668054,-500.0,0.00038904,2]
[341232959,1730706668064,-500.0,0.00038904,2]
[341232960,1730706668075,-1038.01,0.00038904,2]
[341232961,1730706668085,-636.33,0.00038904,2]
[341232962,1730706668094,-2119.8,0.00038904,2]
[341232963,1730706668106,-855.96,0.00038904,2]
[341232964,1730706668116,-1376.22,0.00038904,2]
[341232965,1730706668128,-1148.2,0.00038904,2]
[341232966,1730706668139,-500.0,0.00038904,2]
[341232967,1730706668148,-500.0,0.00038904,2]
[341232968,1730706668158,-500.0,0.00038904,2]
[341232969,1730706668167,-500.0,0.00038904,2]
[341232970,1730706668179,-502.79,0.00038904,2]
[341232971,1730706668189,-550.01,0.00038904,2]
[341232972,1730706668199,-500.0,0.00038904,2]
[341232973,1730706668208,-500.0,0.00038904,2]
[341232974,1730706668219,-500.0,0.00038904,2]
[341232975,1730706668229,-1083.55,0.00038904,2]
[341232976,1730706668239,-165.40090822,0.00038904,2]
[341232977,1730706668248,-500.0,0.00038904,2]
[341232978,1730706668260,-500.0,0.00038904,2]
[341232979,1730706668271,-620.66,0.00038904,2]
[341232980,1730706668281,-500.0,0.00038904,2]
[341232981,1730706668292,-658.4,0.00038904,2]
[341232982,1730706668302,-625.32,0.00038904,2]
[341232983,1730706668312,-500.0,0.00038904,2]
[341232984,1730706668322,-500.0,0.00038904,2]
[341232985,1730706668331,-557.48,0.00038904,2]
[341232986,1730706668341,-5483.23,0.00038904,2]
[341232987,1730706668351,-500.0,0.00038904,2]
[341232988,1730706668361,-637.29,0.00038904,2]
[341232989,1730706668370,-500.0,0.00038904,2]
[341232990,1730706668381,-1246.575045,0.00038963,2]
[341232991,1730706668391,-2873.275237,0.00038963,2]
[341232992,1730706668401,-264.24510025,0.0003897,2]
[341232993,1730706668410,-160307.55025857,0.0003899,2]
[341232994,1730706668422,-5800.0,0.00038992,7]
[341232995,1730706668431,-219813.5066975,0.00039,15]
[341232996,1730706668441,-10498.97770966,0.00039,7]
[341232997,1730706668450,-382.67977435,0.00039,2]
[341232998,1730706668462,-169.2100928,0.00039,23]
[341232999,1730706668471,-1032.65,0.00039,30]
[341233000,1730706668481,-472.87,0.00039,14]
[341233001,1730706668492,-900.0,0.00039,40]
[341233002,1730706668502,-2053.60695516,0.00039,120]
[341233003,1730706668512,-206.0,0.00039,30]
[341233004,1730706668521,-5065.00842575,0.00039,7]
[341233005,1730706668534,-5800.0,0.00039,7]
[341233006,1730706668544,-5800.0,0.00039,7]
[341233007,1730706668553,-316.02384,0.00039,5]
[341233008,1730706668563,-184.78207735,0.00039,7]
[341233009,1730706668573,-165.85135747,0.00039,7]
[341233010,1730706668583,-152.50927963,0.00039,7]
[341233011,1730706668594,-493.0,0.00039044,2]
[341233012,1730706668603,-205.28328,0.00039088,7]
[341233013,1730706668613,-4578.08,0.00039117,30]
[341233014,1730706668624,-4578.08,0.00039117,30]
[341233015,1730706668633,-1000.0,0.00039178,2]
[341233016,1730706668643,-1000.0,0.00039178,30]
[341233017,1730706668652,-500.0,0.00039178,2]
[341233018,1730706668662,-516.28559787,0.00039178,2]
[341233019,1730706668672,-150.0,0.00039178,2]
[341233020,1730706668681,-500.0,0.00039178,2]
[341233021,1730706668691,-922.57,0.00039178,2]
[341233022,1730706668702,-500.0,0.00039178,2]
[341233023,1730706668712,-503.57,0.00039178,2]
[341233024,1730706668723,-302.21148232,0.00039178,2]
[341233025,1730706668733,-1260.4,0.00039178,2]
[341233026,1730706668742,-1008.77,0.00039178,2]
[341233027,1730706668753,-552.59,0.00039178,2]
[341233028,1730706668762,-500.0,0.00039178,2]
[341233029,1730706668773,-764.99,0.00039178,2]
[341233030,1730706668783,-680.74,0.00039178,2]
[341233031,1730706668795,-500.0,0.00039178,2]
[341233032,1730706668805,-500.0,0.00039178,2]
[341233033,1730706668815,-500.0,0.00039178,2]
[341233034,1730706668824,-500.0,0.00039178,2]
[341233035,1730706668942,-500.0,0.00039178,2]
[341233036,1730706668954,-500.0,0.00039178,2]
[341233037,1730706668966,-500.0,0.00039178,2]
[341233038,1730706668977,-882.73,0.00039178,2]
[341233039,1730706668987,-570.12,0.00039178,2]
[341233040,1730706668996,-500.0,0.00039178,2]
[341233041,1730706669009,-1038.01,0.00039178,2]
[341233042,1730706669020,-636.33,0.00039178,2]
[341233043,1730706669030,-2119.8,0.00039178,2]
[341233044,1730706669040,-855.96,0.00039178,2]
[341233045,1730706669050,-1376.22,0.00039178,2]
[341233046,1730706669062,-1148.2,0.00039178,2]
[341233047,1730706669071,-500.0,0.00039178,2]
[341233048,1730706669081,-500.0,0.00039178,2]
[341233049,1730706669092,-500.0,0.00039178,2]
[341233050,1730706669102,-542.74,0.00039178,2]
[341233051,1730706669112,-502.79,0.00039178,2]
[341233052,1730706669123,-550.01,0.00039178,2]
[341233053,1730706669133,-500.0,0.00039178,2]
[341233054,1730706669143,-500.0,0.00039178,2]
[341233055,1730706669154,-500.0,0.00039178,2]
[341233056,1730706669164,-1083.55,0.00039178,2]
[341233057,1730706669173,-500.0,0.00039178,2]
[341233058,1730706669183,-500.0,0.00039178,2]
[341233059,1730706669193,-620.66,0.00039178,2]
[341233060,1730706669202,-500.0,0.00039178,2]
[341233061,1730706669214,-658.4,0.00039178,2]
[341233062,1730706669223,-625.32,0.00039178,2]
[341233063,1730706669233,-500.0,0.00039178,2]
[341233064,1730706669243,-500.0,0.00039178,2]
[341233065,1730706669253,-557.48,0.00039178,2]
[341233066,1730706669262,-5483.23,0.00039178,2]
[341233067,1730706669271,-500.0,0.00039178,2]
[341233068,1730706669280,-637.29,0.00039178,2]
[341233069,1730706669290,-500.0,0.00039178,2]
[341233070,1730706669299,-205.28328,0.00039288,7]
[341233071,1730706669309,-493.0,0.00039318,2]
[341233072,1730706669319,-1417.43,0.00039344,2]
[341233073,1730706669328,-4578.08,0.0003939,30]
[341233074,1730706669338,-4578.08,0.0003939,30]
[341233075,1730706669348,-1183.0915887,0.00039421,90]
[341233076,1730706669357,-168.71,0.00039441,2]
[341233077,1730706669367,-1000.0,0.00039452,2]
[341233078,1730706669376,-1000.0,0.00039452,30]
[341233079,1730706669385,-500.0,0.00039452,2]
[341233080,1730706669394,-216.94663617,0.00039452,2]
[341233081,1730706669404,-500.0,0.00039452,2]
[341233082,1730706669414,-922.57,0.00039452,2]
[341233083,1730706669424,-500.0,0.00039452,2]
[341233084,1730706669433,-503.57,0.00039452,2]
[341233085,1730706669443,-1260.4,0.00039452,2]
[341233086,1730706669452,-1008.77,0.00039452,2]
[341233087,1730706669462,-552.59,0.00039452,2]
[341233088,1730706669471,-500.0,0.00039452,2]
[341233089,1730706669481,-764.99,0.00039452,2]
[341233090,1730706669490,-680.74,0.00039452,2]
[341233091,1730706669500,-500.0,0.00039452,2]
[341233092,1730706669512,-500.0,0.00039452,2]
[341233093,1730706669521,-500.0,0.00039452,2]
[341233094,1730706669531,-500.0,0.00039452,2]
[341233095,1730706669540,-406.05236907,0.00039452,2]
[341233096,1730706669550,-500.0,0.00039452,2]
[341233097,1730706669560,-500.0,0.00039452,2]
[341233098,1730706669569,-882.73,0.00039452,2]
[341233099,1730706669578,-500.0,0.00039452,2]
[341233100,1730706669587,-1038.01,0.00039452,2]
[341233101,1730706669597,-636.33,0.00039452,2]
[341233102,1730706669606,-2119.8,0.00039452,2]
[341233103,1730706669615,-855.96,0.00039452,2]
[341233104,1730706669625,-1376.22,0.00039452,2]
[341233105,1730706669635,-1148.2,0.00039452,2]
[341233106,1730706669645,-500.0,0.00039452,2]
[341233107,1730706669654,-500.0,0.00039452,2]
[341233108,1730706669663,-500.0,0.00039452,2]
[341233109,1730706669673,-502.79,0.00039452,2]
[341233110,1730706669683,-550.01,0.00039452,2]
[341233111,1730706669692,-500.0,0.00039452,2]
[341233112,1730706669701,-500.0,0.00039452,2]
[341233113,1730706669712,-500.0,0.00039452,2]
[341233114,1730706669722,-1083.55,0.00039452,2]
[341233115,1730706669732,-240.19273054,0.00039452,2]
[341233116,1730706669741,-500.0,0.00039452,2]
[341233117,1730706669750,-620.66,0.00039452,2]
[341233118,1730706669760,-500.0,0.00039452,2]
[341233119,1730706669771,-658.4,0.00039452,2]
[341233120,1730706669782,-625.32,0.00039452,2]
[341233121,1730706669791,-500.0,0.00039452,2]
[341233122,1730706669801,-500.0,0.00039452,2]
[341233123,1730706669810,-557.48,0.00039452,2]
[341233124,1730706669819,-5483.23,0.00039452,2]
[341233125,1730706669828,-518.59295108,0.00039452,2]
[341233126,1730706669837,-637.29,0.00039452,2]
[341233127,1730706669847,-500.0,0.00039452,2]
[341233128,1730706669856,-205.28328,0.00039488,7]
[341233129,1730706669866,-500.0,0.00039563,120]
[341233130,1730706669876,-493.0,0.00039592,2]
[341233131,1730706669885,-999.25,0.000396,7]
[341233132,1730706669895,-1000.0,0.0003961,2]
[341233133,1730706669904,-520.0,0.00039643,2]
[341233134,1730706669913,-4578.08,0.00039663,30]
[341233135,1730706669923,-4578.08,0.00039663,30]
[341233136,1730706669933,-205.28328,0.00039688,7]
[341233137,1730706669942,-1042.48266,0.00039699,2]
[341233138,1730706669952,-2402.855427,0.00039699,2]
[341233139,1730706669961,-472.87,0.000397,14]
[341233140,1730706669971,-1000.0,0.00039726,2]
[341233141,1730706669980,-1000.0,0.00039726,30]
[341233142,1730706669989,-500.0,0.00039726,2]
[341233143,1730706669999,-500.0,0.00039726,2]
[341233144,1730706670010,-922.57,0.00039726,2]
[341233145,1730706670020,-500.0,0.00039726,2]
[341233146,1730706670029,-503.57,0.00039726,2]
[341233147,1730706670039,-1260.4,0.00039726,2]
[341233148,1730706670048,-1008.77,0.00039726,2]
[341233149,1730706670058,-552.59,0.00039726,2]
[341233150,1730706670067,-500.0,0.00039726,2]
[341233151,1730706670078,-764.99,0.00039726,2]
[341233152,1730706670087,-680.74,0.00039726,2]
[341233153,1730706670097,-589.90157925,0.00039726,2]
[341233154,1730706670107,-500.0,0.00039726,2]
[341233155,1730706670116,-500.0,0.00039726,2]
[341233156,1730706670126,-500.0,0.00039726,2]
[341233157,1730706670136,-500.0,0.00039726,2]
[341233158,1730706670147,-500.0,0.00039726,2]
[341233159,1730706670158,-882.73,0.00039726,2]
[341233160,1730706670167,-500.0,0.00039726,2]
[341233161,1730706670178,-1038.01,0.00039726,2]
[341233162,1730706670187,-636.33,0.00039726,2]
[341233163,1730706670195,-2119.8,0.00039726,2]
[341233164,1730706670204,-855.96,0.00039726,2]
[341233165,1730706670213,-1376.22,0.00039726,2]
[341233166,1730706670223,-1148.2,0.00039726,2]
[341233167,1730706670233,-500.0,0.00039726,2]
[341233168,1730706670242,-500.0,0.00039726,2]
[341233169,1730706670251,-500.0,0.00039726,2]
[341233170,1730706670262,-502.79,0.00039726,2]
[341233171,1730706670271,-550.01,0.00039726,2]
[341233172,1730706670281,-500.0,0.00039726,2]
[341233173,1730706670290,-500.0,0.00039726,2]
[341233174,1730706670300,-500.0,0.00039726,2]
[341233175,1730706670310,-1083.55,0.00039726,2]
[341233176,1730706670319,-500.0,0.00039726,2]
[341233177,1730706670328,-620.66,0.00039726,2]
[341233178,1730706670338,-500.0,0.00039726,2]
[341233179,1730706670347,-658.4,0.00039726,2]
[341233180,1730706670356,-625.32,0.00039726,2]
[341233181,1730706670365,-500.0,0.00039726,2]
[341233182,1730706670374,-500.0,0.00039726,2]
[341233183,1730706670387,-557.48,0.00039726,2]
[341233184,1730706670397,-5483.23,0.00039726,2]
[341233185,1730706670406,-637.29,0.00039726,2]
[341233186,1730706670415,-500.0,0.00039726,2]
[341233187,1730706670425,-262.42297649,0.00039726,15]
[341233188,1730706670435,-168.49050546,0.00039726,30]
[341233189,1730706670445,-250.0,0.0003977,2]
[341233190,1730706670457,-838.390275,0.00039773,2]
[341233191,1730706670466,-634.29789,0.00039773,2]
[341233192,1730706670478,-1932.435617,0.00039773,2]
[341233193,1730706670488,-1462.015807,0.00039773,2]
[341233194,1730706670498,-18282.77069579,0.0003978,5]
[341233195,1730706670508,-10138.33517907,0.0003978,2]
[341233196,1730706670517,-1363249.10226447,0.000398,120]
[341233197,1730706670526,-1052.44219995,0.000398,2]
[341233198,1730706670536,-493.0,0.00039866,2]
[341233199,1730706670545,-500.0,0.0003987,60]
[341233200,1730706670556,-524.93449222,0.0003987,60]
[341233201,1730706670566,-500.0,0.0003987,60]
[341233202,1730706670575,-4578.08,0.00039937,30]
[341233203,1730706670584,-4578.08,0.00039937,30]
[341233204,1730706670594,-166.78,0.00039997,2]
[341233205,1730706670603,-160.0,0.0004,120]
[341233206,1730706670612,-30285.3535641,0.0004,120]
[341233207,1730706670622,-394.76365089,0.0004,120]
[341233208,1730706670632,-16463.48204217,0.0004,4]
[341233209,1730706670641,-918.03119087,0.0004,2]
[341233210,1730706670651,-12166.83169843,0.0004,10]
[341233211,1730706670660,-501.34669746,0.0004,2]
[341233212,1730706670670,-906.042699,0.0004,2]
[341233213,1730706670680,-400.0,0.0004,5]
[341233214,1730706670690,-209.5251644,0.0004,2]
[341233215,1730706670699,-12561.09489809,0.0004,30]
[341233216,1730706670711,-200.0,0.0004,120]
[341233217,1730706670720,-415.0,0.0004,120]
[341233218,1730706670731,-1000.0,0.0004,2]
[341233219,1730706670740,-1000.0,0.0004,30]
[341233220,1730706670750,-900.0,0.0004,41]
[341233221,1730706670760,-2000.34197209,0.0004,30]
[341233222,1730706670770,-486.08509253,0.0004,120]
[341233223,1730706670780,-407.0,0.0004,30]
[341233224,1730706670790,-213103.68812967,0.0004,60]
[341233225,1730706670799,-150.0,0.0004,120]
[341233226,1730706670810,-811.51113724,0.0004,2]
[341233227,1730706670819,-248.4858499,0.0004,2]
[341233228,1730706670829,-500.0,0.0004,2]
[341233229,1730706670838,-922.57,0.0004,2]
[341233230,1730706670848,-500.0,0.0004,2]
[341233231,1730706670858,-503.57,0.0004,2]
[341233232,1730706670868,-1260.4,0.0004,2]
[341233233,1730706670877,-1008.77,0.0004,2]
[341233234,1730706670887,-552.59,0.0004,2]
[341233235,1730706670896,-500.0,0.0004,2]
[341233236,1730706670905,-764.99,0.0004,2]
[341233237,1730706670915,-680.74,0.0004,2]
[341233238,1730706670925,-500.0,0.0004,2]
[341233239,1730706670934,-500.0,0.0004,2]
[341233240,1730706670944,-500.0,0.0004,2]
[341233241,1730706670954,-500.0,0.0004,2]
[341233242,1730706670964,-500.0,0.0004,2]
[341233243,1730706670974,-882.73,0.0004,2]
[341233244,1730706670983,-500.0,0.0004,2]
[341233245,1730706670993,-1038.01,0.0004,2]
[341233246,1730706671004,-636.33,0.0004,2]
[341233247,1730706671015,-2119.8,0.0004,2]
[341233248,1730706671024,-855.96,0.0004,2]
[341233249,1730706671033,-1376.22,0.0004,2]
[341233250,1730706671043,-1148.2,0.0004,2]
[341233251,1730706671053,-500.0,0.0004,2]
[341233252,1730706671062,-500.0,0.0004,2]
[341233253,1730706671071,-218.27491457,0.0004,2]
[341233254,1730706671080,-502.79,0.0004,2]
[341233255,1730706671090,-550.01,0.0004,2]
[341233256,1730706671099,-500.0,0.0004,2]